[Event "*** Titled Tuesday Blitz"]
[Site "Chess.com"]
[Date "2020.11.03"]
[Round "7"]
[White "JosefineHeinemann"]
[Black "S2PAc"]
[Result "1/2-1/2"]
[WhiteElo "2606"]
[BlackElo "2844"]
[TimeControl "180+1"]
[EndTime "11:22:09 PST"]
[Termination "Game drawn by repetition"]

1. e4 {[%clk 0:02:43.5]} 1... c6 {[%clk 0:03:00.2]} 2. d4 {[%clk 0:02:41.5]}
2... d5 {[%clk 0:03:00.6]} 3. Nd2 {[%clk 0:02:42.2]} 3... g6 {[%clk 0:03:00.2]}
4. Ngf3 {[%clk 0:02:41.1]} 4... Bg7 {[%clk 0:03:00.8]} 5. e5 {[%clk 0:02:41.5]}
5... f6 {[%clk 0:02:58]} 6. exf6 {[%clk 0:02:41.2]} 6... exf6 {[%clk 0:02:57.6]}
7. Bd3 {[%clk 0:02:41.9]} 7... Nh6 {[%clk 0:02:57.4]} 8. O-O {[%clk 0:02:42.2]}
8... O-O {[%clk 0:02:58]} 9. h3 {[%clk 0:02:42.4]} 9... Bf5 {[%clk 0:02:57.9]}
10. Bxf5 {[%clk 0:02:41]} 10... Nxf5 {[%clk 0:02:58.8]} 11. c3 {[%clk
0:02:41.7]} 11... Nd6 {[%clk 0:02:58.1]} 12. Re1 {[%clk 0:02:41.5]} 12... Nd7
{[%clk 0:02:58.6]} 13. Nf1 {[%clk 0:02:41.6]} 13... Ne4 {[%clk 0:02:58.3]} 14.
N3d2 {[%clk 0:02:41.2]} 14... f5 {[%clk 0:02:58.5]} 15. f3 {[%clk 0:02:41]}
15... Nd6 {[%clk 0:02:56.8]} 16. Ng3 {[%clk 0:02:39.7]} 16... f4 {[%clk
0:02:56.8]} 17. Ne2 {[%clk 0:02:37.5]} 17... g5 {[%clk 0:02:54]} 18. Nf1 {[%clk
0:02:37.4]} 18... Nf5 {[%clk 0:02:54.2]} 19. Qd3 {[%clk 0:02:35.2]} 19... Qf6
{[%clk 0:02:52.3]} 20. Bd2 {[%clk 0:02:34.5]} 20... Rae8 {[%clk 0:02:51.9]} 21.
Rad1 {[%clk 0:02:33.2]} 21... Nb6 {[%clk 0:02:41.6]} 22. b3 {[%clk 0:02:31.6]}
22... Nc8 {[%clk 0:02:41.7]} 23. Nc1 {[%clk 0:02:30.5]} 23... Ncd6 {[%clk
0:02:42.2]} 24. Rxe8 {[%clk 0:02:28.9]} 24... Rxe8 {[%clk 0:02:43.1]} 25. Re1
{[%clk 0:02:29.4]} 25... Rf8 {[%clk 0:02:37.6]} 26. Qe2 {[%clk 0:02:24.5]} 26...
Re8 {[%clk 0:02:25.4]} 27. Qd3 {[%clk 0:02:24.1]} 27... Rxe1 {[%clk 0:02:17.2]}
28. Bxe1 {[%clk 0:02:25]} 28... h5 {[%clk 0:02:09]} 29. Bf2 {[%clk 0:02:23.8]}
29... Qg6 {[%clk 0:02:07]} 30. Ne2 {[%clk 0:02:18.2]} 30... Kf7 {[%clk
0:02:06.1]} 31. c4 {[%clk 0:02:14.6]} 31... Qe6 {[%clk 0:02:03.3]} 32. c5 {[%clk
0:02:11.3]} 32... Nb5 {[%clk 0:01:51.5]} 33. a4 {[%clk 0:02:11.1]} 33... Nc7
{[%clk 0:01:52.1]} 34. h4 {[%clk 0:02:07.3]} 34... Bf6 {[%clk 0:01:47.2]} 35.
hxg5 {[%clk 0:02:04.6]} 35... Bxg5 {[%clk 0:01:48.1]} 36. g3 {[%clk 0:01:51.7]}
36... Qg6 {[%clk 0:01:47.7]} 37. g4 {[%clk 0:01:38.8]} 37... hxg4 {[%clk
0:01:34.9]} 38. fxg4 {[%clk 0:01:39.7]} 38... Nh6 {[%clk 0:01:35.4]} 39. Qxg6+
{[%clk 0:01:38.4]} 39... Kxg6 {[%clk 0:01:36.3]} 40. Nh2 {[%clk 0:01:37.5]}
40... Ne8 {[%clk 0:01:32.4]} 41. Kg2 {[%clk 0:01:36.9]} 41... Nf6 {[%clk
0:01:32.8]} 42. Kf3 {[%clk 0:01:37.4]} 42... Ne4 {[%clk 0:01:32.7]} 43. Be1
{[%clk 0:01:35.8]} 43... Nf7 {[%clk 0:01:29]} 44. Nxf4+ {[%clk 0:01:32.8]} 44...
Bxf4 {[%clk 0:01:29.9]} 45. Kxf4 {[%clk 0:01:33.3]} 45... Nfg5 {[%clk
0:01:26.9]} 46. Bh4 {[%clk 0:01:19.4]} 46... Nh3+ {[%clk 0:01:16.9]} 47. Ke3
{[%clk 0:01:16.3]} 47... Ng1 {[%clk 0:01:08.8]} 48. b4 {[%clk 0:01:05.6]} 48...
Nc3 {[%clk 0:01:05.2]} 49. a5 {[%clk 0:00:56.2]} 49... Nd1+ {[%clk 0:00:55.9]}
50. Kd2 {[%clk 0:00:53.6]} 50... Nb2 {[%clk 0:00:54.9]} 51. Ke3 {[%clk
0:00:52.5]} 51... Nd1+ {[%clk 0:00:54.2]} 52. Kd2 {[%clk 0:00:51.5]} 52... Nb2
{[%clk 0:00:54.7]} 53. Ke3 {[%clk 0:00:37.5]} 53... Nc4+ {[%clk 0:00:55.1]} 54.
Kd3 {[%clk 0:00:34.8]} 54... Nh3 {[%clk 0:00:47]} 55. Nf3 {[%clk 0:00:29.2]}
55... Nf4+ {[%clk 0:00:47.2]} 56. Kc3 {[%clk 0:00:28.6]} 56... Ne2+ {[%clk
0:00:47.2]} 57. Kd3 {[%clk 0:00:28.5]} 57... Nf4+ {[%clk 0:00:45.2]} 58. Kc3
{[%clk 0:00:29]} 58... Ng2 {[%clk 0:00:45.5]} 59. Bd8 {[%clk 0:00:26.2]} 59...
Nge3 {[%clk 0:00:43.8]} 60. g5 {[%clk 0:00:22.4]} 60... Ng4 {[%clk 0:00:37.9]}
61. Kd3 {[%clk 0:00:19.9]} 61... Kh5 {[%clk 0:00:29.9]} 62. Kc3 {[%clk
0:00:18.6]} 62... a6 {[%clk 0:00:25.8]} 63. Be7 {[%clk 0:00:17.6]} 63... Nf2
{[%clk 0:00:25.6]} 64. Bd8 {[%clk 0:00:16.7]} 64... Ne4+ {[%clk 0:00:25.6]} 65.
Kd3 {[%clk 0:00:17.2]} 65... Kg6 {[%clk 0:00:21.9]} 66. Nh4+ {[%clk 0:00:16.1]}
66... Kh5 {[%clk 0:00:22.3]} 67. Nf3 {[%clk 0:00:16.6]} 67... Nf2+ {[%clk
0:00:19.6]} 68. Kc3 {[%clk 0:00:16.2]} 68... Ng4 {[%clk 0:00:20.5]} 69. Kd3
{[%clk 0:00:16.2]} 69... Kg6 {[%clk 0:00:13.4]} 70. Nh4+ {[%clk 0:00:14.3]}
70... Kh5 {[%clk 0:00:13.6]} 71. Nf3 {[%clk 0:00:15.2]} 71... Nf2+ {[%clk
0:00:12.5]} 72. Kc3 {[%clk 0:00:13.3]} 1/2-1/2

[Event "*** Titled Tuesday Blitz"]
[Site "Chess.com"]
[Date "2020.11.03"]
[Round "7"]
[White "JoliyRoger"]
[Black "petrkostenko"]
[Result "1-0"]
[WhiteElo "2375"]
[BlackElo "2439"]
[TimeControl "180+1"]
[EndTime "11:22:10 PST"]
[Termination "JoliyRoger won on time"]

1. Nf3 {[%clk 0:03:00.9]} 1... e6 {[%clk 0:03:00.9]} 2. c4 {[%clk 0:02:57.5]}
2... Nf6 {[%clk 0:02:57.7]} 3. d4 {[%clk 0:02:58]} 3... d5 {[%clk 0:02:57.1]} 4.
cxd5 {[%clk 0:02:57.6]} 4... exd5 {[%clk 0:02:56.6]} 5. Nc3 {[%clk 0:02:58.5]}
5... c6 {[%clk 0:02:55.3]} 6. Bg5 {[%clk 0:02:59]} 6... h6 {[%clk 0:02:54.6]} 7.
Bh4 {[%clk 0:02:58.9]} 7... Bf5 {[%clk 0:02:54.5]} 8. e3 {[%clk 0:02:58.6]} 8...
Nbd7 {[%clk 0:02:54.1]} 9. Bd3 {[%clk 0:02:56.9]} 9... Bxd3 {[%clk 0:02:54.1]}
10. Qxd3 {[%clk 0:02:57.6]} 10... Be7 {[%clk 0:02:54.6]} 11. O-O {[%clk
0:02:58.2]} 11... O-O {[%clk 0:02:54.5]} 12. Rab1 {[%clk 0:02:58.8]} 12... Re8
{[%clk 0:02:54.8]} 13. b4 {[%clk 0:02:55.9]} 13... a6 {[%clk 0:02:54.8]} 14. a4
{[%clk 0:02:55.2]} 14... b5 {[%clk 0:02:54.4]} 15. Bxf6 {[%clk 0:02:41.5]} 15...
Bxf6 {[%clk 0:02:51.1]} 16. a5 {[%clk 0:02:36.6]} 16... Rc8 {[%clk 0:02:29.6]}
17. Rfc1 {[%clk 0:02:31.1]} 17... Be7 {[%clk 0:02:29.4]} 18. Rc2 {[%clk
0:02:00.5]} 18... Bd6 {[%clk 0:02:12.4]} 19. Qf5 {[%clk 0:01:43.5]} 19... Qe7
{[%clk 0:02:08]} 20. Na2 {[%clk 0:01:42.7]} 20... Nf6 {[%clk 0:02:04]} 21. Ne1
{[%clk 0:01:24.1]} 21... g6 {[%clk 0:01:37.5]} 22. Qf3 {[%clk 0:01:21.7]} 22...
Ne4 {[%clk 0:01:31.7]} 23. Nd3 {[%clk 0:01:21.1]} 23... h5 {[%clk 0:01:21.1]}
24. Rbc1 {[%clk 0:01:20.7]} 24... Qd7 {[%clk 0:01:16.9]} 25. Qh3 {[%clk
0:01:11.8]} 25... Qxh3 {[%clk 0:01:10]} 26. gxh3 {[%clk 0:01:10.2]} 26... Re6
{[%clk 0:01:10.4]} 27. Kg2 {[%clk 0:01:02.7]} 27... Bf8 {[%clk 0:00:53.4]} 28.
Ne5 {[%clk 0:00:55.8]} 28... f6 {[%clk 0:00:37.1]} 29. Nxc6 {[%clk 0:00:30.4]}
29... Kg7 {[%clk 0:00:35.4]} 30. Na7 {[%clk 0:00:22.3]} 30... Rc4 {[%clk
0:00:35.2]} 31. f3 {[%clk 0:00:20.3]} 31... Ng5 {[%clk 0:00:32.3]} 32. h4 {[%clk
0:00:13.9]} 32... Nf7 {[%clk 0:00:31.6]} 33. Kf2 {[%clk 0:00:14.5]} 33... Re7
{[%clk 0:00:17.6]} 34. Rxc4 {[%clk 0:00:10.9]} 34... bxc4 {[%clk 0:00:16.4]} 35.
Nc8 {[%clk 0:00:11.5]} 35... Rb7 {[%clk 0:00:15.4]} 36. Nb6 {[%clk 0:00:12.1]}
36... Bd6 {[%clk 0:00:14]} 37. Nxd5 {[%clk 0:00:11.6]} 37... Bxh2 {[%clk
0:00:12.3]} 38. Nb6 {[%clk 0:00:12.1]} 38... Nd6 {[%clk 0:00:11.8]} 39. Nxc4
{[%clk 0:00:11.7]} 39... Nxc4 {[%clk 0:00:11.1]} 40. Rxc4 {[%clk 0:00:12.2]}
40... Bd6 {[%clk 0:00:11.3]} 41. Rc6 {[%clk 0:00:12.5]} 41... Bxb4 {[%clk
0:00:11.8]} 42. Rb6 {[%clk 0:00:12]} 42... Rxb6 {[%clk 0:00:11.5]} 43. axb6
{[%clk 0:00:12.5]} 43... Bd6 {[%clk 0:00:12.4]} 44. b7 {[%clk 0:00:13]} 44...
Kf7 {[%clk 0:00:11]} 45. Nc3 {[%clk 0:00:13.5]} 45... Ke7 {[%clk 0:00:10.5]} 46.
Nd5+ {[%clk 0:00:13.3]} 46... Ke6 {[%clk 0:00:10.4]} 47. Nb6 {[%clk 0:00:12.8]}
47... a5 {[%clk 0:00:09.5]} 48. Nc4 {[%clk 0:00:13.2]} 48... Bc7 {[%clk
0:00:09.6]} 49. Nxa5 {[%clk 0:00:13.6]} 49... Kd7 {[%clk 0:00:07.8]} 50. Nc4
{[%clk 0:00:13.3]} 50... Kc6 {[%clk 0:00:07.7]} 51. e4 {[%clk 0:00:12.8]} 51...
Kxb7 {[%clk 0:00:08]} 52. d5 {[%clk 0:00:13.1]} 52... Kc8 {[%clk 0:00:08.5]} 53.
Nd2 {[%clk 0:00:13.6]} 53... Kd7 {[%clk 0:00:08.7]} 54. Kg2 {[%clk 0:00:14]}
54... Bf4 {[%clk 0:00:08.1]} 55. Nc4 {[%clk 0:00:14.5]} 55... Ke7 {[%clk
0:00:08]} 56. Nb2 {[%clk 0:00:15.2]} 56... Kd6 {[%clk 0:00:07.3]} 57. Nd3 {[%clk
0:00:16.1]} 57... Be3 {[%clk 0:00:06.8]} 58. Kg3 {[%clk 0:00:16.5]} 58... g5
{[%clk 0:00:06.6]} 59. hxg5 {[%clk 0:00:16.3]} 59... fxg5 {[%clk 0:00:06.8]} 60.
Ne1 {[%clk 0:00:16.5]} 60... Ke5 {[%clk 0:00:05.6]} 61. Ng2 {[%clk 0:00:16.3]}
61... Bd2 {[%clk 0:00:05.1]} 62. Kf2 {[%clk 0:00:16.6]} 62... h4 {[%clk
0:00:05]} 63. Ne3 {[%clk 0:00:14.3]} 63... Bb4 {[%clk 0:00:01.4]} 64. Ng4+
{[%clk 0:00:14.5]} 64... Kf4 {[%clk 0:00:01.6]} 65. Kg2 {[%clk 0:00:13.3]} 1-0

[Event "*** Titled Tuesday Blitz"]
[Site "Chess.com"]
[Date "2020.11.03"]
[Round "7"]
[White "LubovMarkelova"]
[Black "tteshan"]
[Result "1-0"]
[WhiteElo "2246"]
[BlackElo "2352"]
[TimeControl "180+1"]
[EndTime "11:22:13 PST"]
[Termination "LubovMarkelova won by resignation"]

1. Nf3 {[%clk 0:02:35.6]} 1... c5 {[%clk 0:02:59.6]} 2. c4 {[%clk 0:02:35.3]}
2... Nc6 {[%clk 0:02:59.6]} 3. Nc3 {[%clk 0:02:35.6]} 3... g6 {[%clk 0:03:00]}
4. g3 {[%clk 0:02:35.7]} 4... Bg7 {[%clk 0:03:00.2]} 5. Bg2 {[%clk 0:02:35.2]}
5... e6 {[%clk 0:03:00.3]} 6. d3 {[%clk 0:02:31.4]} 6... Nge7 {[%clk 0:03:00.7]}
7. h4 {[%clk 0:02:32]} 7... h5 {[%clk 0:02:57.9]} 8. Bf4 {[%clk 0:02:24]} 8...
O-O {[%clk 0:02:52.4]} 9. Ne4 {[%clk 0:01:53.7]} 9... Nf5 {[%clk 0:02:46.4]} 10.
Qd2 {[%clk 0:01:44.3]} 10... b6 {[%clk 0:02:32.6]} 11. Nd6 {[%clk 0:01:37.4]}
11... Nxd6 {[%clk 0:02:12.7]} 12. Bxd6 {[%clk 0:01:38.3]} 12... Re8 {[%clk
0:02:12.6]} 13. Ne5 {[%clk 0:01:29.8]} 13... Bb7 {[%clk 0:01:52.1]} 14. g4
{[%clk 0:01:12.5]} 14... Bxe5 {[%clk 0:01:42]} 15. Bxe5 {[%clk 0:01:05.2]} 15...
Nxe5 {[%clk 0:01:41.6]} 16. Bxb7 {[%clk 0:01:04.3]} 16... Rb8 {[%clk 0:01:42]}
17. gxh5 {[%clk 0:00:47.4]} 17... Rxb7 {[%clk 0:01:38.9]} 18. hxg6 {[%clk
0:00:47.7]} 18... fxg6 {[%clk 0:01:16.6]} 19. O-O-O {[%clk 0:00:41.9]} 19... d6
{[%clk 0:01:04.9]} 20. h5 {[%clk 0:00:39.4]} 20... Rg7 {[%clk 0:00:55.6]} 21. f4
{[%clk 0:00:33.6]} 21... Nc6 {[%clk 0:00:55.1]} 22. hxg6 {[%clk 0:00:24.6]}
22... Qf6 {[%clk 0:00:41.2]} 23. Qe3 {[%clk 0:00:22.4]} 23... Nd4 {[%clk
0:00:33.3]} 24. Kb1 {[%clk 0:00:19.3]} 24... Nf5 {[%clk 0:00:30.2]} 25. Qe4
{[%clk 0:00:18.8]} 25... Qd4 {[%clk 0:00:17.4]} 26. Qc6 {[%clk 0:00:16.4]} 26...
Rf8 {[%clk 0:00:17.4]} 27. Rdg1 {[%clk 0:00:13]} 27... Qxf4 {[%clk 0:00:16]} 28.
Rf1 {[%clk 0:00:10.9]} 28... Qe5 {[%clk 0:00:15]} 29. Rh7 {[%clk 0:00:08.8]}
29... Rxg6 {[%clk 0:00:12.3]} 30. Rfh1 {[%clk 0:00:08.1]} 30... d5 {[%clk
0:00:06.7]} 31. Qd7 {[%clk 0:00:06.7]} 31... Rh6 {[%clk 0:00:02.3]} 32. Rg1+
{[%clk 0:00:05.9]} 32... Ng3 {[%clk 0:00:01.7]} 33. Rxg3+ {[%clk 0:00:04.5]}
33... Qxg3 {[%clk 0:00:01.9]} 34. Rxh6 {[%clk 0:00:04.1]} 34... Qg1+ {[%clk
0:00:02.5]} 35. Kc2 {[%clk 0:00:04.5]} 35... Qg7 {[%clk 0:00:02.9]} 36. Qxg7+
{[%clk 0:00:03.3]} 36... Kxg7 {[%clk 0:00:03.5]} 37. Rxe6 {[%clk 0:00:04.1]}
37... dxc4 {[%clk 0:00:03.5]} 38. dxc4 {[%clk 0:00:04.2]} 38... Rf7 {[%clk
0:00:04.2]} 39. Kd3 {[%clk 0:00:04.2]} 39... Rd7+ {[%clk 0:00:04.8]} 40. Kc3
{[%clk 0:00:04.6]} 40... Kf7 {[%clk 0:00:05.5]} 41. Re4 {[%clk 0:00:03.2]} 41...
Kf6 {[%clk 0:00:05.5]} 42. Re3 {[%clk 0:00:03.1]} 42... Kf5 {[%clk 0:00:06]} 43.
Rd3 {[%clk 0:00:03.5]} 43... Re7 {[%clk 0:00:05.7]} 44. Kd2 {[%clk 0:00:02.9]}
44... Rh7 {[%clk 0:00:05.4]} 45. Rd5+ {[%clk 0:00:02.8]} 45... Ke6 {[%clk
0:00:05.8]} 46. Kd3 {[%clk 0:00:03]} 46... a6 {[%clk 0:00:05.3]} 47. a3 {[%clk
0:00:02.6]} 47... Rh3+ {[%clk 0:00:05.8]} 48. e3 {[%clk 0:00:02.3]} 48... Rh2
{[%clk 0:00:06.2]} 49. b4 {[%clk 0:00:02.9]} 49... cxb4 {[%clk 0:00:05.9]} 50.
axb4 {[%clk 0:00:02.9]} 50... Rb2 {[%clk 0:00:06.6]} 51. Kc3 {[%clk 0:00:03.2]}
51... Ra2 {[%clk 0:00:07.1]} 52. Kb3 {[%clk 0:00:03.6]} 52... Re2 {[%clk
0:00:07.2]} 53. Rd3 {[%clk 0:00:03.5]} 53... Ke5 {[%clk 0:00:07.2]} 54. c5
{[%clk 0:00:03.8]} 54... bxc5 {[%clk 0:00:07.3]} 55. bxc5 {[%clk 0:00:04.4]}
55... Ke4 {[%clk 0:00:07.9]} 56. Rc3 {[%clk 0:00:03.9]} 56... Rh2 {[%clk
0:00:07]} 57. Kc4 {[%clk 0:00:03.8]} 57... Rh8 {[%clk 0:00:07.1]} 58. c6 {[%clk
0:00:04.1]} 58... Rc8 {[%clk 0:00:07.4]} 59. Kc5 {[%clk 0:00:04.7]} 59... Ke5
{[%clk 0:00:08]} 60. Kb6 {[%clk 0:00:04.8]} 60... Kd6 {[%clk 0:00:08]} 61. Rd3+
{[%clk 0:00:05.2]} 61... Ke6 {[%clk 0:00:07.8]} 62. Kb7 {[%clk 0:00:05.7]} 62...
Rh8 {[%clk 0:00:04.3]} 63. c7 {[%clk 0:00:05.9]} 63... Rh7 {[%clk 0:00:04.3]}
64. Kb8 {[%clk 0:00:05.8]} 64... Rxc7 {[%clk 0:00:03.4]} 1-0

[Event "*** Titled Tuesday Blitz"]
[Site "Chess.com"]
[Date "2020.11.03"]
[Round "7"]
[White "keshka01"]
[Black "InitiatingASC"]
[Result "1/2-1/2"]
[WhiteElo "2561"]
[BlackElo "2405"]
[TimeControl "180+1"]
[EndTime "11:22:14 PST"]
[Termination "Game drawn by repetition"]

1. Nf3 {[%clk 0:03:00.9]} 1... Nf6 {[%clk 0:02:58.9]} 2. b3 {[%clk 0:03:01.3]}
2... e6 {[%clk 0:02:59.8]} 3. Bb2 {[%clk 0:03:01.7]} 3... b6 {[%clk 0:03:00.2]}
4. g3 {[%clk 0:03:00.3]} 4... Bb7 {[%clk 0:03:00.4]} 5. Bg2 {[%clk 0:03:01]}
5... Be7 {[%clk 0:03:01.2]} 6. O-O {[%clk 0:03:01.6]} 6... O-O {[%clk
0:03:01.7]} 7. c4 {[%clk 0:03:01.7]} 7... c5 {[%clk 0:03:02.3]} 8. Nc3 {[%clk
0:03:00.1]} 8... d6 {[%clk 0:03:02.4]} 9. d4 {[%clk 0:02:59.3]} 9... cxd4 {[%clk
0:03:03.2]} 10. Qxd4 {[%clk 0:02:59.7]} 10... Nbd7 {[%clk 0:03:01.8]} 11. e4
{[%clk 0:02:41.3]} 11... a6 {[%clk 0:03:00.1]} 12. Rad1 {[%clk 0:02:40.4]} 12...
Qc7 {[%clk 0:02:59.9]} 13. Qe3 {[%clk 0:02:37.1]} 13... Rac8 {[%clk 0:02:49.5]}
14. Nd4 {[%clk 0:02:37]} 14... Rfe8 {[%clk 0:02:46.4]} 15. Rfe1 {[%clk 0:02:36]}
15... Qb8 {[%clk 0:02:46.6]} 16. h3 {[%clk 0:02:33.6]} 16... Qa8 {[%clk
0:02:45.7]} 17. Qd2 {[%clk 0:02:27]} 17... Nf8 {[%clk 0:02:44.5]} 18. Re2 {[%clk
0:02:26.1]} 18... N6d7 {[%clk 0:02:44.6]} 19. Qe1 {[%clk 0:02:25.6]} 19... Nc5
{[%clk 0:02:28.5]} 20. f4 {[%clk 0:02:12.1]} 20... Red8 {[%clk 0:02:01.1]} 21.
g4 {[%clk 0:01:57.5]} 21... Bf6 {[%clk 0:01:49.5]} 22. Kh2 {[%clk 0:01:01.2]}
22... Bxd4 {[%clk 0:01:48.3]} 23. Rxd4 {[%clk 0:01:02.1]} 23... e5 {[%clk
0:01:48.6]} 24. fxe5 {[%clk 0:00:57.1]} 24... dxe5 {[%clk 0:01:48.1]} 25. Rxd8
{[%clk 0:00:58]} 25... Rxd8 {[%clk 0:01:48]} 26. Nd5 {[%clk 0:00:58.9]} 26...
Nd3 {[%clk 0:01:31.2]} 27. Qc3 {[%clk 0:00:57.6]} 27... Nxb2 {[%clk 0:01:26.8]}
28. Qxb2 {[%clk 0:00:58.5]} 28... Bxd5 {[%clk 0:01:26.8]} 29. exd5 {[%clk
0:00:59.4]} 29... f6 {[%clk 0:01:20.4]} 30. Be4 {[%clk 0:00:56]} 30... Qc8
{[%clk 0:01:16.4]} 31. Qc2 {[%clk 0:00:54.6]} 31... Qc5 {[%clk 0:01:15.4]} 32.
Rg2 {[%clk 0:00:47]} 32... h6 {[%clk 0:01:05.6]} 33. Qc3 {[%clk 0:00:37.3]}
33... b5 {[%clk 0:00:58.8]} 34. Bf5 {[%clk 0:00:30.2]} 34... Rxd5 {[%clk
0:00:54]} 35. Qf3 {[%clk 0:00:25.7]} 35... bxc4 {[%clk 0:00:50.6]} 36. bxc4
{[%clk 0:00:18.4]} 36... Qxc4 {[%clk 0:00:50.4]} 37. Rc2 {[%clk 0:00:18.8]}
37... Qf4+ {[%clk 0:00:44.1]} 38. Qxf4 {[%clk 0:00:18.6]} 38... exf4 {[%clk
0:00:44.4]} 39. Rc8 {[%clk 0:00:19.5]} 39... Rd2+ {[%clk 0:00:36.1]} 40. Kg1
{[%clk 0:00:19.6]} 40... Kf7 {[%clk 0:00:32.2]} 41. Rc7+ {[%clk 0:00:19.3]}
41... Kg8 {[%clk 0:00:25.3]} 42. Rc8 {[%clk 0:00:19.6]} 42... Kf7 {[%clk
0:00:21.4]} 43. Rc7+ {[%clk 0:00:19.8]} 43... Ke8 {[%clk 0:00:17.3]} 44. Rxg7
{[%clk 0:00:12.8]} 44... Rxa2 {[%clk 0:00:16]} 45. Ra7 {[%clk 0:00:13.3]} 45...
f3 {[%clk 0:00:12.9]} 46. Kf1 {[%clk 0:00:13.2]} 46... Kd8 {[%clk 0:00:11.1]}
47. Ra8+ {[%clk 0:00:12.9]} 47... Ke7 {[%clk 0:00:11.2]} 48. Ra7+ {[%clk
0:00:13.8]} 48... Kd6 {[%clk 0:00:10.8]} 49. Rf7 {[%clk 0:00:13.9]} 49... Ke5
{[%clk 0:00:08.1]} 50. Rxf8 {[%clk 0:00:12.8]} 50... Kf4 {[%clk 0:00:08.5]} 51.
Re8 {[%clk 0:00:10.7]} 51... Kg3 {[%clk 0:00:08.6]} 52. Re3 {[%clk 0:00:05.9]}
52... Ra1+ {[%clk 0:00:07.6]} 53. Re1 {[%clk 0:00:05.7]} 53... Ra2 {[%clk
0:00:07.7]} 54. Re3 {[%clk 0:00:05.1]} 54... Rh2 {[%clk 0:00:07.2]} 55. Kg1
{[%clk 0:00:04.4]} 55... Ra2 {[%clk 0:00:06.5]} 56. Bd3 {[%clk 0:00:02.7]} 56...
Ra1+ {[%clk 0:00:05.9]} 57. Bf1 {[%clk 0:00:03.3]} 57... Ra2 {[%clk 0:00:06.3]}
58. Rc3 {[%clk 0:00:03.2]} 58... a5 {[%clk 0:00:03.1]} 59. Rd3 {[%clk
0:00:03.6]} 59... a4 {[%clk 0:00:03.4]} 60. Rc3 {[%clk 0:00:03.8]} 60... a3
{[%clk 0:00:03.3]} 61. Rd3 {[%clk 0:00:04.2]} 61... Ra1 {[%clk 0:00:03.7]} 62.
Rc3 {[%clk 0:00:04.7]} 62... a2 {[%clk 0:00:04.1]} 63. Ra3 {[%clk 0:00:05.1]}
63... Kf4 {[%clk 0:00:03]} 64. Kf2 {[%clk 0:00:05.6]} 64... Kg5 {[%clk
0:00:01.4]} 65. Ra5+ {[%clk 0:00:02.8]} 65... Kg6 {[%clk 0:00:01.4]} 66. Ra4
{[%clk 0:00:03.3]} 66... Kg5 {[%clk 0:00:01.8]} 67. Ra5+ {[%clk 0:00:03.8]}
67... Kg6 {[%clk 0:00:02.1]} 68. Bd3+ {[%clk 0:00:04.5]} 68... Kf7 {[%clk
0:00:01.6]} 69. Bf1 {[%clk 0:00:05.4]} 69... Kg6 {[%clk 0:00:01.9]} 1/2-1/2

[Event "*** Titled Tuesday Blitz"]
[Site "Chess.com"]
[Date "2020.11.03"]
[Round "7"]
[White "BlackBoarder"]
[Black "Xeniya2005"]
[Result "0-1"]
[WhiteElo "2529"]
[BlackElo "2402"]
[TimeControl "180+1"]
[EndTime "11:22:14 PST"]
[Termination "Xeniya2005 won on time"]

1. e4 {[%clk 0:02:20.6]} 1... e6 {[%clk 0:02:58.3]} 2. d4 {[%clk 0:02:20.3]}
2... d5 {[%clk 0:02:58.2]} 3. Bd3 {[%clk 0:02:20.9]} 3... dxe4 {[%clk
0:02:57.2]} 4. Bxe4 {[%clk 0:02:21.8]} 4... Nf6 {[%clk 0:02:57.4]} 5. Bf3 {[%clk
0:02:22.4]} 5... Be7 {[%clk 0:02:56.8]} 6. Ne2 {[%clk 0:02:22.4]} 6... c5 {[%clk
0:02:54.4]} 7. O-O {[%clk 0:02:21.9]} 7... O-O {[%clk 0:02:53.4]} 8. Be3 {[%clk
0:02:21.9]} 8... Qc7 {[%clk 0:02:51.8]} 9. dxc5 {[%clk 0:02:16.2]} 9... Bxc5
{[%clk 0:02:50.8]} 10. Bxc5 {[%clk 0:02:15.5]} 10... Qxc5 {[%clk 0:02:50.1]} 11.
Nbc3 {[%clk 0:02:11.1]} 11... Nc6 {[%clk 0:02:48.1]} 12. Bxc6 {[%clk 0:02:05.9]}
12... Qxc6 {[%clk 0:02:46.9]} 13. Nd4 {[%clk 0:02:03.8]} 13... Qb6 {[%clk
0:02:45.6]} 14. Nb3 {[%clk 0:01:47.3]} 14... a6 {[%clk 0:02:28]} 15. Qd4 {[%clk
0:01:45.4]} 15... Qc7 {[%clk 0:02:25.5]} 16. Rad1 {[%clk 0:01:42.8]} 16... b6
{[%clk 0:02:22.5]} 17. Qd6 {[%clk 0:01:37.3]} 17... Qa7 {[%clk 0:02:15.4]} 18.
Na4 {[%clk 0:01:25.3]} 18... b5 {[%clk 0:02:05.1]} 19. Nac5 {[%clk 0:01:15.3]}
19... Bb7 {[%clk 0:02:00.3]} 20. Nxb7 {[%clk 0:00:59.3]} 20... Qxb7 {[%clk
0:02:00]} 21. Nc5 {[%clk 0:01:00]} 21... Qa7 {[%clk 0:01:58.5]} 22. Nd7 {[%clk
0:00:43.5]} 22... Nxd7 {[%clk 0:01:55.8]} 23. Qxd7 {[%clk 0:00:44.4]} 23... Qc5
{[%clk 0:01:55.4]} 24. c3 {[%clk 0:00:43.3]} 24... h6 {[%clk 0:01:53.1]} 25. Rd4
{[%clk 0:00:42.2]} 25... Rfc8 {[%clk 0:01:41.6]} 26. Rfd1 {[%clk 0:00:36.7]}
26... a5 {[%clk 0:01:34.1]} 27. Qd6 {[%clk 0:00:26.4]} 27... Qxd6 {[%clk
0:01:30.5]} 28. Rxd6 {[%clk 0:00:26.3]} 28... b4 {[%clk 0:01:30.3]} 29. R6d3
{[%clk 0:00:22.8]} 29... bxc3 {[%clk 0:01:15.4]} 30. Rxc3 {[%clk 0:00:22.8]}
30... Rxc3 {[%clk 0:01:14.5]} 31. bxc3 {[%clk 0:00:23.7]} 31... Rc8 {[%clk
0:01:13.5]} 32. Rc1 {[%clk 0:00:23.2]} 32... Kf8 {[%clk 0:01:13.4]} 33. Kf1
{[%clk 0:00:23.4]} 33... Ke7 {[%clk 0:01:13.5]} 34. Ke2 {[%clk 0:00:23.8]} 34...
Rc4 {[%clk 0:01:09]} 35. Kd3 {[%clk 0:00:21.5]} 35... Ra4 {[%clk 0:01:08.3]} 36.
Rc2 {[%clk 0:00:20.4]} 36... Kd6 {[%clk 0:01:08]} 37. Rb2 {[%clk 0:00:19.9]}
37... Kc6 {[%clk 0:01:06.6]} 38. g3 {[%clk 0:00:10.7]} 38... e5 {[%clk
0:01:05.6]} 39. f3 {[%clk 0:00:10.3]} 39... f5 {[%clk 0:01:04.5]} 40. Re2 {[%clk
0:00:09]} 40... Kd5 {[%clk 0:00:58.8]} 41. Rb2 {[%clk 0:00:05.6]} 41... e4+
{[%clk 0:00:51.4]} 42. fxe4+ {[%clk 0:00:05.1]} 42... fxe4+ {[%clk 0:00:51]} 43.
Kd2 {[%clk 0:00:05.4]} 43... Kc4 {[%clk 0:00:47.7]} 44. Ke3 {[%clk 0:00:02]}
44... Kxc3 {[%clk 0:00:46.9]} 45. Rb7 {[%clk 0:00:02.2]} 45... Rxa2 {[%clk
0:00:44.9]} 46. Rxg7 {[%clk 0:00:02.2]} 46... Rxh2 {[%clk 0:00:44.5]} 47. Kxe4
{[%clk 0:00:02.5]} 47... Kb3 {[%clk 0:00:44.5]} 48. Rb7+ {[%clk 0:00:02.7]}
48... Ka3 {[%clk 0:00:43.8]} 49. Kf4 {[%clk 0:00:01.8]} 49... a4 {[%clk
0:00:43.7]} 50. g4 {[%clk 0:00:01.5]} 50... Rf2+ {[%clk 0:00:38.2]} 51. Kg3
{[%clk 0:00:01.5]} 51... Rb2 {[%clk 0:00:37.9]} 52. Rh7 {[%clk 0:00:01.2]} 52...
Rb6 {[%clk 0:00:36.3]} 53. Rf7 {[%clk 0:00:01.1]} 53... Ka2 {[%clk 0:00:30.6]}
54. Rf2+ {[%clk 0:00:01.3]} 54... Ka3 {[%clk 0:00:22.4]} 55. Kh4 {[%clk
0:00:01.3]} 55... Kb3 {[%clk 0:00:20.1]} 56. Rf3+ {[%clk 0:00:01.5]} 56... Kc4
{[%clk 0:00:19]} 57. Rf4+ {[%clk 0:00:02]} 57... Kb5 {[%clk 0:00:19.1]} 58. Rf5+
{[%clk 0:00:02.5]} 58... Ka6 {[%clk 0:00:19.1]} 59. Rf4 {[%clk 0:00:02.8]} 59...
Ka5 {[%clk 0:00:17.2]} 60. Rf5+ {[%clk 0:00:02.7]} 60... Rb5 {[%clk 0:00:16.8]}
61. Rf6 {[%clk 0:00:01.7]} 61... a3 {[%clk 0:00:16.8]} 62. Rxh6 {[%clk
0:00:02.1]} 62... a2 {[%clk 0:00:16.9]} 63. Rh8 {[%clk 0:00:02.5]} 63... Rb6
{[%clk 0:00:17]} 64. Ra8+ {[%clk 0:00:02.4]} 64... Ra6 {[%clk 0:00:17.1]} 0-1